bitfinex/quotes_ETHUSD_20250326
["timestamp","ask_amount","ask_price","bid_price","bid_amount"]
[1742949057503,8.65475,2073.5,2073.2,0.32086459]
[1742949057854,8.65475,2073.5,2073.0,4.82391]
[1742949058060,8.65475,2073.5,2073.3,0.32022231]
[1742949058309,8.65475,2073.5,2073.0,4.82391]
[1742949058466,8.65475,2073.5,2073.4,0.31976943]
[1742949058665,8.65475,2073.5,2073.1,4.82369]
[1742949058878,8.65475,2073.5,2073.4,0.31976943]
[1742949059364,8.65475,2073.5,2073.1,4.82369]
[1742949059565,8.65475,2073.5,2073.2,0.32067523]
[1742949060601,3.0,2073.3,2072.9,5.64265]
[1742949060806,3.0,2073.4,2073.0,6.71282621]
[1742949061179,4.82328,2073.3,2073.0,1.88904621]
[1742949061360,4.82328,2073.3,2073.0,0.87158121]
[1742949062207,4.82328,2073.3,2073.0,0.32158121]
[1742949062373,4.82369,2073.1,2072.6,10.17144]
[1742949062706,7.66349416,2073.2,2072.7,5.14575535]
[1742949063778,4.82378,2073.1,2072.7,0.32121535]
[1742949064166,7.66349416,2073.2,2072.7,5.14574535]
[1742949064167,12.48716416,2073.2,2072.7,5.14574535]
[1742949064362,7.66349416,2073.2,2072.7,5.14574535]
[1742949064563,3.8319,2073.2,2072.8,4.82427]
[1742949064758,3.0,2073.2,2072.9,0.8186]
[1742949065006,3.0,2073.2,2073.0,0.31985606]
[1742949065307,3.0,2073.3,2073.0,5.14370606]
[1742949065539,3.0,2073.3,2073.0,6.22234767]
[1742949065727,3.0,2073.3,2073.1,4.8236]
[1742949065920,3.0,2073.3,2073.2,14.5]
[1742949066100,3.0,2073.4,2073.2,0.31903422]
[1742949067442,7.82301,2073.4,2073.2,0.31903422]
[1742949067646,4.82322,2073.3,2073.2,0.31903422]
[1742949068002,10.12055142,2073.3,2073.2,0.31903422]
[1742949068304,12.64727,2073.2,2072.8,0.55]
[1742949068502,7.8236,2073.2,2072.8,5.37437]
[1742949068700,3.0,2073.2,2072.8,5.3742]
[1742949069141,3.0,2073.2,2072.8,6.33378497]
[1742949070253,3.0,2073.2,2072.8,9.06810358]
[1742949070645,7.8235,2073.2,2072.8,9.06810358]
[1742949070850,7.8235,2073.2,2072.9,0.32007774]
[1742949071149,3.0,2073.2,2072.9,0.32007774]
[1742949071306,3.0,2073.4,2073.0,5.64342]
[1742949071507,7.823,2073.4,2073.0,6.56820164]
[1742949071776,7.823,2073.4,2073.1,14.81944512]
[1742949071951,3.0,2073.4,2073.1,14.81944512]
[1742949073841,3.0,2073.4,2073.1,19.64311512]
[1742949074047,3.0,2073.4,2073.1,14.81944512]
[1742949074205,0.7574,2073.7,2073.3,5.64267]
[1742949074412,6.83025416,2073.8,2073.4,5.14102635]
[1742949074610,5.57937,2073.9,2073.5,4.8227]
[1742949074835,6.82974416,2074.0,2073.6,0.31718073]
[1742949075039,11.65153416,2074.0,2073.6,0.31718073]
[1742949075251,4.82208,2073.8,2073.6,0.31718073]
[1742949075552,9.64434,2073.8,2073.6,0.31718073]
[1742949075706,4.82208,2073.8,2073.6,0.31718073]
[1742949075903,4.82229,2073.7,2073.6,0.31718073]
[1742949076109,5.57969,2073.7,2073.6,0.31718073]
[1742949076309,7.30286042,2073.7,2073.6,0.31718073]
[1742949076510,7.30286042,2073.7,2073.2,4.82328]
[1742949076839,4.82213,2073.8,2073.3,4.82311]
[1742949077038,4.82213,2073.8,2073.4,0.31760257]
[1742949077590,5.57973,2073.7,2073.4,0.31760257]
[1742949077874,4.82264,2073.6,2073.1,10.17407]
[1742949078071,4.82264,2073.6,2073.5,0.31714974]
[1742949078266,4.82264,2073.6,2073.2,0.55]
[1742949078431,4.82264,2073.6,2073.5,0.31714974]
[1742949078636,4.82264,2073.6,2073.2,5.37337]
[1742949078877,4.82264,2073.6,2073.3,0.31805545]
[1742949079180,5.57973,2073.7,2073.4,5.64258]
[1742949079181,3.0,2073.7,2073.4,5.64258]
[1742949079475,3.0,2073.8,2073.5,5.13987974]
[1742949079839,3.0,2073.9,2073.5,5.13987974]
[1742949081465,7.82185,2073.9,2073.5,5.13987974]
[1742949081891,7.82185,2073.9,2073.5,19.63987974]
[1742949082189,14.35526817,2073.9,2073.5,14.81714974]
[1742949082387,5.57957,2073.8,2073.5,14.81714974]
[1742949082743,5.57957,2073.8,2073.5,0.31714974]
[1742949082948,0.7574,2073.8,2073.5,0.31714974]
[1742949084682,4.82253,2073.6,2073.5,0.31714974]
[1742949084883,9.81437642,2073.6,2073.5,0.31714974]
[1742949085085,4.82306,2073.4,2072.9,9.36511]
[1742949085395,4.82361,2073.2,2072.8,0.7842]
[1742949085697,5.57441,2073.2,2072.8,0.7842]
[1742949085901,5.57441,2073.2,2072.9,0.3185426]
[1742949086266,4.82369,2073.1,2072.9,0.3185426]
[1742949086460,10.39806,2073.2,2072.9,0.3185426]
[1742949086677,5.57441,2073.2,2072.9,0.3185426]
[1742949087404,4.8237,2073.1,2072.9,0.3185426]
[1742949087613,5.57432,2073.2,2072.9,0.3185426]
[1742949087904,4.82372,2073.1,2072.9,0.3185426]
[1742949088705,10.39796,2073.2,2072.9,0.3185426]
[1742949089006,5.57432,2073.2,2072.9,0.3185426]
[1742949089181,10.39798,2073.2,2072.9,0.3185426]
[1742949089563,10.39792,2073.2,2072.9,0.3185426]
[1742949089763,5.57432,2073.2,2072.9,0.3185426]
[1742949090798,5.02770672,2073.2,2072.9,0.3185426]
[1742949090966,4.8238,2073.1,2072.9,0.3185426]
[1742949091304,9.64761,2073.1,2072.9,0.3185426]
[1742949091498,4.8238,2073.1,2072.9,0.3185426]
[1742949091708,4.82392,2073.0,2072.9,0.3185426]
[1742949091925,5.85053141,2073.0,2072.9,0.3185426]
[1742949092126,5.85053141,2073.0,2072.6,0.7842]
[1742949092329,4.82392,2073.0,2072.9,0.31957309]
[1742949092827,4.82392,2073.0,2072.5,10.98418]
[1742949093023,4.82418,2072.9,2072.6,0.32093251]
[1742949093223,7.58306416,2072.9,2072.6,0.32093251]
[1742949095531,0.7508,2072.9,2072.6,5.14557251]
[1742949095727,0.7508,2073.3,2072.9,4.82394]
[1742949095886,3.0,2073.2,2072.9,4.82394]
[1742949096091,3.0,2073.2,2073.0,0.32061335]
[1742949096315,3.7508,2073.3,2073.0,0.32061335]
[1742949096510,8.57412,2073.3,2072.9,4.82414]
[1742949096831,4.82346,2073.2,2073.0,0.32061335]
[1742949097045,7.82346,2073.2,2072.8,5.60853]
[1742949097335,0.7508,2073.0,2072.9,0.32085604]
[1742949097536,6.83178416,2073.1,2072.9,0.32085604]
[1742949097732,6.83178416,2073.1,2072.6,10.4337]
[1742949098036,6.83178416,2073.1,2072.6,11.47707]
[1742949098330,3.0,2073.2,2072.9,4.82412]
[1742949098523,3.0,2073.2,2072.9,5.57802]
[1742949098730,3.0,2073.2,2073.0,0.32040298]
[1742949101211,3.764,2073.4,2073.0,0.32040298]
[1742949101416,8.58712,2073.4,2073.0,0.32040298]
[1742949102308,10.74431907,2073.4,2073.0,0.32040298]
[1742949102503,3.0,2073.4,2073.0,0.32040298]
[1742949103435,3.0,2073.4,2073.0,0.36863912]
[1742949103640,0.764,2073.6,2073.2,4.82324]
[1742949103941,5.58653,2073.6,2073.3,0.31879168]
[1742949104941,3.0,2073.5,2073.3,0.31879168]
[1742949105343,4.82231,2073.7,2073.3,0.31879168]
[1742949105640,3.0,2073.6,2073.3,0.31879168]
[1742949107325,0.764,2073.8,2073.4,5.57688]
[1742949107721,3.0,2073.7,2073.5,0.31740225]
[1742949107921,7.8223,2073.7,2073.5,0.31740225]
[1742949108224,7.8223,2073.7,2073.3,4.82316]
[1742949108423,7.8223,2073.7,2073.4,0.31785509]
[1742949108940,9.36394642,2073.7,2073.4,0.31785509]
[1742949110255,9.36394642,2073.7,2073.4,0.22105509]
[1742949110430,9.36394642,2073.7,2073.4,0.30809467]
[1742949110777,8.58613,2073.8,2073.4,0.30809467]
[1742949111260,3.0,2073.8,2073.4,0.30809467]
[1742949111469,5.6125531,2074.0,2073.5,5.57649]
[1742949111776,3.7908731,2074.0,2073.6,5.13012188]
[1742949112075,0.0268731,2074.0,2073.7,9.64444]
[1742949112363,0.0268731,2074.0,2073.8,6.43252643]
[1742949112732,0.0268731,2074.0,2073.9,4.82183]
[1742949113077,0.0268731,2074.0,2073.9,5.1275671]
[1742949113439,0.0268731,2074.0,2073.9,0.3057371]
[1742949114162,0.0268731,2074.0,2073.9,5.1275671]
[1742949114462,0.0268731,2074.0,2073.9,6.93554347]
[1742949116878,0.0268731,2074.0,2073.9,6.92221697]
[1742949118572,0.0268731,2074.0,2073.9,1.55038697]
[1742949118757,0.0268731,2074.0,2073.9,0.2924106]
[1742949119272,0.0268731,2074.0,2073.9,0.30462656]
[1742949121452,5.5987731,2074.0,2073.6,5.63002]
[1742949121638,0.7771731,2074.0,2073.7,0.30553192]
[1742949123341,5.5987731,2074.0,2073.7,0.30553192]
[1742949123674,9.82994416,2073.9,2073.7,0.30553192]
[1742949123839,4.82254,2073.6,2073.2,16.43697011]
[1742949124046,6.83062416,2073.6,2073.3,0.30662842]
[1742949124658,0.7546,2073.5,2073.3,0.30662842]
[1742949124838,8.57695,2073.7,2073.3,0.30662842]
[1742949125041,10.41768142,2073.7,2073.3,0.30662842]
[1742949125245,0.7546,2073.4,2073.3,0.30662842]
[1742949125668,7.58543416,2073.6,2073.3,0.30662842]
[1742949126145,4.82299,2073.4,2073.3,0.30662842]
[1742949126556,7.82299,2073.4,2073.3,0.30662842]
[1742949126751,9.36381042,2073.4,2073.3,0.30662842]
[1742949127075,12.12649458,2073.4,2073.3,0.30662842]
[1742949128475,7.30350458,2073.4,2073.3,0.30662842]
[1742949128680,3.0,2073.4,2073.3,0.30662842]
[1742949130155,9.83107416,2073.4,2073.3,0.30662842]
[1742949132078,10.63747416,2073.4,2073.3,0.30662842]
[1742949132243,3.8064,2073.4,2073.3,0.30662842]
[1742949132448,8.62939,2073.4,2073.3,0.30662842]
[1742949132679,12.18350358,2073.4,2073.3,0.30662842]
[1742949132881,10.63747416,2073.4,2073.3,0.30662842]
[1742949133478,8.62939,2073.4,2073.3,0.30662842]
[1742949134414,10.63747416,2073.4,2073.3,0.30662842]
[1742949135946,10.99307463,2073.4,2073.3,0.30662842]
[1742949136645,7.82322,2073.3,2073.2,6.24106011]
[1742949136846,9.99561457,2073.3,2073.2,6.54923492]
[1742949137049,10.80201457,2073.3,2073.2,0.30817481]
[1742949137363,5.63074,2072.9,2072.4,4.82521]
[1742949137566,12.46319416,2072.9,2072.4,4.82521]
[1742949137881,7.63882416,2072.9,2072.5,0.31302872]
[1742949138393,12.46302416,2072.9,2072.5,0.31302872]
[1742949139093,4.82465,2072.7,2072.5,0.31302872]
[1742949139294,4.82465,2072.7,2072.3,0.7927]
[1742949139295,4.82471,2072.7,2072.3,5.61822]
[1742949139794,4.82471,2072.7,2072.4,0.31348199]
[1742949140086,4.8249,2072.6,2072.4,0.31348199]
[1742949140300,4.82509,2072.5,2072.4,0.31348199]
[1742949140453,4.82534,2072.4,2072.1,1.78946911]
[1742949140690,4.82534,2072.4,2072.2,0.3152934]
[1742949141252,5.63126,2072.6,2072.2,1.1079934]
[1742949141501,5.63126,2072.6,2072.2,5.9336534]
[1742949141696,10.45631,2072.6,2072.2,5.9336534]
[1742949141993,3.0,2072.6,2072.2,5.9336534]
[1742949142295,3.0,2072.6,2072.3,4.82538]
[1742949142589,3.0,2072.6,2072.4,0.31470242]
[1742949144402,7.82489,2072.6,2072.4,0.31470242]
[1742949144680,7.82489,2072.6,2072.2,5.61847]
[1742949144885,9.37128942,2072.6,2072.3,0.31515573]
[1742949145066,4.82518,2072.5,2072.3,0.31515573]
[1742949145268,9.37128942,2072.6,2072.2,4.82567]
[1742949145468,7.82489,2072.6,2072.3,0.31646012]
[1742949145700,7.82489,2072.6,2072.2,4.82567]
[1742949145859,7.82489,2072.6,2072.3,0.31646012]
[1742949146365,7.82489,2072.6,2072.4,0.3160068]
[1742949146766,7.82489,2072.6,2072.2,4.82567]
[1742949146979,7.82489,2072.6,2072.5,0.31555353]
[1742949147188,9.37128142,2072.6,2072.2,4.82578]
[1742949147394,9.37128142,2072.6,2072.5,0.31555353]
[1742949147574,9.37128142,2072.6,2072.2,4.82578]
[1742949147775,9.37128142,2072.6,2072.5,0.31555353]
[1742949148506,9.37128142,2072.6,2072.2,4.82578]
[1742949148733,7.82489,2072.6,2072.3,0.31646012]
[1742949149120,12.64995,2072.6,2072.1,4.84596]
[1742949149410,5.62284,2072.4,2072.2,0.31691347]
[1742949149980,3.0,2072.6,2072.2,0.31691347]
[1742949150204,3.7975,2072.7,2072.3,5.60843]
[1742949150397,3.0,2072.7,2072.3,5.60834]
[1742949150598,3.0,2072.7,2072.4,5.14145728]
[1742949150983,3.0,2072.7,2072.4,0.31621728]
[1742949151994,3.0,2072.9,2072.5,4.82499]
[1742949152323,7.82421,2072.9,2072.6,0.31499507]
[1742949152524,9.83229416,2072.9,2072.6,0.31499507]
[1742949152823,4.82448,2072.8,2072.4,4.82531]
[1742949152989,7.82448,2072.8,2072.7,0.31454189]
[1742949153193,9.29015742,2072.8,2072.4,4.82531]
[1742949153513,10.10705742,2072.8,2072.7,0.31454189]
[1742949153726,10.10705742,2072.8,2072.4,14.5]
[1742949153890,10.10705742,2072.8,2072.5,0.31527994]
[1742949154714,10.10705742,2072.8,2072.3,10.43383]
[1742949154926,8.64138,2072.8,2072.3,10.43383]
[1742949155133,8.64138,2072.8,2072.4,0.31573321]
[1742949155308,8.64138,2072.8,2072.4,5.14102321]
[1742949157129,8.64138,2072.8,2072.4,5.85964385]
[1742949157332,4.82463,2072.7,2072.4,1.03435385]
[1742949158231,7.82463,2072.7,2072.4,1.03435385]
[1742949158731,11.38011458,2072.7,2072.4,0.31573321]
[1742949159226,16.20492458,2072.7,2072.4,0.31573321]
[1742949159434,4.82494,2072.6,2072.4,0.31573321]
[1742949159839,4.82509,2072.5,2072.4,0.31573321]
[1742949160144,4.8249,2072.6,2072.4,0.31573321]
[1742949160346,4.82509,2072.5,2072.4,0.31573321]
[1742949163744,6.04462846,2072.6,2072.4,0.31573321]
[1742949164161,10.86960846,2072.6,2072.4,0.31573321]
[1742949164451,4.82509,2072.5,2072.4,0.31573321]
[1742949164941,11.38017458,2072.7,2072.4,0.31573321]
[1742949165131,3.0,2072.7,2072.5,4.82486]
[1742949165337,3.0,2072.7,2072.6,0.31467939]
[1742949165519,3.0,2072.7,2072.4,5.58398]
[1742949165724,3.0,2072.7,2072.5,0.31513262]
[1742949165925,3.0,2072.7,2072.5,1.03375326]
[1742949167226,7.82471,2072.7,2072.5,1.03375326]
[1742949167542,7.82471,2072.7,2072.6,0.71862064]
[1742949167841,7.82471,2072.7,2072.6,1.0330896]
[1742949168011,9.29044242,2072.7,2072.6,1.0330896]
[1742949168417,10.06864242,2072.7,2072.6,1.0330896]
[1742949169242,12.07672658,2072.7,2072.6,0.31446896]
[1742949171019,12.07672658,2072.7,2072.3,0.99019085]
[1742949171020,4.82491,2072.6,2072.3,0.99019085]
[1742949171220,9.64995,2072.6,2072.2,5.5844]
[1742949171450,4.82491,2072.6,2072.2,5.5844]
[1742949172251,4.82491,2072.6,2072.3,14.5]
[1742949172455,4.82511,2072.5,2072.3,14.5]
[1742949172755,4.82511,2072.5,2072.3,15.22104944]
[1742949173125,4.82511,2072.5,2072.3,0.72104944]
[1742949173558,4.82511,2072.5,2072.3,15.22104944]
[1742949173853,4.82511,2072.5,2072.3,0.72104944]
[1742949175053,4.82511,2072.5,2072.4,0.72104944]
[1742949175231,4.82491,2072.6,2072.4,0.72104944]
[1742949175859,7.82462,2072.7,2072.5,0.31492219]
[1742949176256,7.82462,2072.7,2072.5,14.81492219]
[1742949177461,7.82462,2072.7,2072.5,0.31492219]
[1742949178655,4.82485,2072.6,2072.5,0.31492219]
[1742949179360,7.08380542,2072.6,2072.5,0.31492219]
[1742949179562,7.08380542,2072.6,2072.2,1.78708597]
[1742949179733,5.61805,2072.6,2072.3,14.81578665]
[1742949179936,4.82485,2072.6,2072.3,14.81578665]
[1742949180339,9.6499,2072.6,2072.3,14.81578665]
[1742949180541,4.82485,2072.6,2072.3,14.81578665]
[1742949180745,7.82467,2072.7,2072.3,19.64118665]
[1742949180943,3.0,2072.7,2072.4,0.8162]
[1742949181147,3.0,2072.7,2072.5,0.31500632]
[1742949181351,2.9032,2072.7,2072.5,0.31500632]
[1742949181751,2.9032,2072.7,2072.5,5.13997632]
[1742949182060,5.61719,2073.0,2072.5,5.13987632]
[1742949182280,4.82399,2073.0,2072.6,5.42042763]
[1742949182567,4.8244,2072.8,2072.7,0.31409991]
[1742949182935,4.82477,2072.7,2072.4,0.8162]
[1742949183264,4.825,2072.6,2072.5,0.31500632]
[1742949183461,4.82439,2072.8,2072.5,0.31500632]
[1742949183663,4.82467,2072.7,2072.5,0.31500632]
[1742949183868,4.82485,2072.6,2072.5,0.31500632]
[1742949184269,4.82485,2072.6,2072.2,20.14182]
[1742949184457,4.82485,2072.6,2072.5,0.31456443]
[1742949184632,4.82485,2072.6,2072.3,2.553783]
[1742949184837,4.82485,2072.6,2072.5,0.31456443]
[1742949185053,4.82464,2072.7,2072.4,0.31501771]
[1742949185253,4.82445,2072.8,2072.5,1.13076443]
[1742949185567,4.82445,2072.8,2072.5,2.46910032]
[1742949185739,4.82471,2072.7,2072.6,14.5]
[1742949185940,4.82471,2072.7,2072.6,14.81419537]
[1742949186165,10.62599416,2072.7,2072.6,0.31419537]
[1742949186368,10.62599416,2072.7,2072.1,0.57]
[1742949186369,4.82537,2072.4,2072.1,0.57]
[1742949186559,4.82537,2072.4,2072.2,0.93718542]
[1742949188171,4.82537,2072.4,2072.3,14.5]
[1742949188373,4.82537,2072.4,2072.3,14.81549206]
[1742949190780,9.65034,2072.5,2072.3,14.81549206]
[1742949191676,4.82532,2072.4,2072.3,14.81549206]
[1742949191856,8.65622,2072.4,2072.3,14.81549206]
[1742949192040,10.68764542,2072.4,2072.3,14.81549206]
[1742949192654,8.65622,2072.4,2072.3,14.81549206]
[1742949193564,8.65622,2072.4,2072.3,0.31549206]
[1742949193888,4.82578,2072.2,2072.1,0.02]
[1742949194094,4.82578,2072.2,2072.1,14.52]
[1742949194388,8.65668,2072.2,2072.1,0.02]
[1742949194542,9.90571742,2072.2,2072.1,0.02]
[1742949195260,4.82773,2071.4,2071.0,5.66133]
[1742949195468,6.83581416,2071.4,2071.0,0.8328]
[1742949195695,6.83581416,2071.4,2071.1,14.5]
[1742949195696,4.828,2071.3,2071.1,14.5]
[1742949196542,4.82811,2071.2,2071.1,14.5]
[1742949196747,3.0,2070.9,2070.2,0.52186947]
[1742949196948,2.00808416,2070.5,2070.1,5.68338]
[1742949197176,4.82961,2070.6,2070.1,5.68338]
[1742949197378,4.83012,2070.4,2070.2,14.5]
[1742949197614,4.8301,2070.4,2070.2,14.5]
[1742949198209,9.66022,2070.4,2070.2,14.5]
[1742949198407,5.99693042,2070.4,2070.2,14.5]
[1742949198590,2.00808416,2070.3,2070.2,14.5]
[1742949198987,2.00808416,2070.3,2070.1,0.02]
[1742949199299,3.0,2070.4,2070.1,0.02]
[1742949199500,3.0,2070.5,2070.1,4.85046]
[1742949199698,7.82939,2070.7,2070.2,4.83024]
[1742949200008,3.0,2070.7,2070.2,4.83024]
[1742949200190,7.82932,2070.7,2070.2,4.83024]
[1742949200614,7.82932,2070.7,2070.2,9.66055]
[1742949200812,3.0,2070.7,2070.4,4.82987]
[1742949201125,3.0,2070.8,2070.4,5.66267]
[1742949201324,9.83734416,2070.8,2070.3,0.55]
[1742949201499,4.82934,2070.7,2070.2,5.66308]
[1742949201824,4.82957,2070.6,2070.2,0.8328]
[1742949202043,3.0,2070.5,2070.1,0.02]
[1742949202321,3.0,2070.7,2070.3,4.83004]
[1742949202504,3.0,2070.7,2070.4,4.82984]
[1742949202706,3.0,2070.7,2070.3,4.83004]
[1742949202923,3.0,2070.7,2070.5,4.82965]
[1742949203126,3.0,2070.7,2070.4,4.82982]
[1742949203713,7.82929,2070.7,2070.3,0.55]
[1742949203915,9.75563442,2070.7,2070.3,0.55]
[1742949204091,4.92634442,2070.7,2070.3,0.55]
[1742949204933,2.79238416,2070.6,2070.1,4.85058]
[1742949205114,6.83823416,2070.4,2070.1,0.02]
[1742949205327,2.00808416,2070.2,2070.1,0.02]
[1742949205840,2.00808416,2070.2,2070.1,0.35154213]
[1742949206043,2.92224562,2070.2,2070.1,0.02]
[1742949206231,2.92224562,2070.2,2070.1,0.35154213]
[1742949206539,2.92224562,2070.2,2070.1,0.02]
[1742949206747,2.92224562,2070.2,2070.1,0.35154213]
[1742949207241,2.00808416,2070.2,2070.1,0.35154213]
[1742949207425,4.83037,2070.3,2070.1,0.35154213]
[1742949207621,9.66069,2070.3,2070.1,0.35154213]
[1742949207826,4.83045,2070.2,2070.1,0.35154213]
[1742949208144,4.83032,2070.3,2070.1,0.35154213]
[1742949208368,6.75784942,2070.3,2070.1,0.35154213]
[1742949208872,1.92752942,2070.3,2070.1,0.35154213]
[1742949209737,3.0,2070.4,2070.1,5.18219213]
[1742949210275,0.7843,2070.6,2070.1,0.35154213]
[1742949210436,10.22008,2071.0,2070.5,4.82951]
[1742949210644,4.82884,2070.9,2070.4,4.82997]
[1742949210836,2.00808416,2070.9,2070.6,0.33335916]
[1742949211161,5.00808416,2070.9,2070.7,0.3329051]
[1742949211367,5.00808416,2070.9,2070.5,4.82973]
[1742949211667,9.83691416,2070.9,2070.6,0.33335916]
[1742949212165,6.83661416,2071.1,2070.5,0.831]
[1742949212468,3.0,2071.0,2070.6,5.16222195]
[1742949212968,3.0,2071.0,2070.6,0.33283195]
[1742949213286,7.8286,2071.0,2070.6,0.33283195]
[1742949213562,6.83690416,2070.9,2070.6,0.33283195]
[1742949213768,3.0,2070.8,2070.6,0.33283195]
[1742949214063,3.0,2070.8,2070.4,0.55]
[1742949214269,3.0,2070.8,2070.7,0.33212487]
[1742949214576,7.82906,2070.8,2070.7,0.33218812]
[1742949214860,7.82906,2070.8,2070.3,5.66099]
[1742949215062,7.82906,2070.8,2070.7,0.33218812]
[1742949215251,8.61336,2070.8,2070.3,5.66099]
[1742949215454,8.61336,2070.8,2070.7,0.33218812]
[1742949215972,8.61336,2070.8,2070.3,5.66099]
[1742949216266,8.61336,2070.8,2070.4,0.33355044]
[1742949216475,6.83749416,2070.7,2070.4,0.33355044]
[1742949216642,4.82963,2070.6,2070.4,0.33355044]
[1742949217045,4.82963,2070.6,2070.1,4.85066]
[1742949217267,4.82963,2070.6,2070.5,0.33309629]
[1742949217473,4.82963,2070.6,2070.1,4.85066]
[1742949217676,4.82963,2070.6,2070.5,0.33309629]
[1742949217833,5.4514483,2070.6,2070.1,4.85066]
[1742949218173,10.15856642,2070.8,2070.3,4.83013]
[1742949218374,10.15856642,2070.8,2070.4,0.33355044]
[1742949219171,14.98775642,2070.8,2070.4,0.33355044]
[1742949219370,14.98763642,2070.8,2070.2,9.6608]
[1742949219529,14.98763642,2070.8,2070.3,0.33400463]
[1742949219748,14.98763642,2070.8,2070.2,9.6608]
[1742949220089,14.98763642,2070.8,2070.3,5.16418463]
[1742949220590,10.15847642,2070.8,2070.3,5.16418463]
[1742949222813,4.82935,2070.7,2070.3,0.33400463]
[1742949223104,4.82935,2070.7,2070.2,5.88154]
[1742949223105,6.83743416,2070.7,2070.2,5.88154]
[1742949223272,6.83743416,2070.7,2070.4,0.33355044]
[1742949223475,8.99802522,2070.7,2070.3,0.33400463]
[1742949223675,7.82957,2070.6,2070.5,0.33309629]
[1742949223862,8.58345,2070.5,2070.4,0.33355044]
[1742949224065,4.83025,2070.3,2070.1,0.02]
[1742949224269,2.00808416,2070.2,2070.1,0.02]
[1742949225598,2.00808416,2070.4,2070.1,0.02]
[1742949225799,8.38019658,2070.4,2070.1,0.02]
[1742949226777,0.7537,2070.2,2070.1,0.02]
[1742949227119,7.59223416,2070.2,2070.1,0.02]
[1742949228193,2.76178416,2070.2,2070.1,0.02]
[1742949228383,3.0,2070.3,2070.1,0.02]
[1742949229529,1.54212242,2070.4,2070.1,0.02]
[1742949230085,3.0,2070.3,2070.1,0.02]
[1742949230781,4.54212242,2070.4,2070.1,0.02]
[1742949231196,3.0,2070.5,2070.2,0.7812]
[1742949231542,3.7537,2070.6,2070.2,0.7812]
[1742949231905,5.58263,2070.9,2070.4,4.82994]
[1742949232238,3.0,2070.8,2070.4,4.82988]
[1742949232528,4.82893,2070.9,2070.4,5.874008]
[1742949232887,5.58216,2071.1,2070.6,5.61057]
[1742949233086,5.58169,2071.3,2070.7,4.8291]
[1742949233301,10.40881,2071.5,2070.9,4.82867]
[1742949233501,7.82766,2071.4,2070.9,4.82881]
[1742949233727,3.0,2071.4,2070.9,4.82881]
[1742949233906,6.85921822,2071.5,2071.0,4.82857]
[1742949234310,3.0,2071.4,2071.0,4.82857]
[1742949234638,3.0,2071.4,2071.0,4.82849]
[1742949235052,6.85921822,2071.5,2071.0,4.82849]
[1742949235348,6.85921822,2071.5,2071.0,9.65696]
[1742949235533,5.655,2071.7,2070.9,2.00808416]
[1742949235836,2.83608416,2071.7,2071.0,5.94703068]
[1742949236037,4.82753,2071.5,2071.0,5.94725068]
[1742949236427,7.82723,2071.6,2071.0,11.90826875]
[1742949236741,7.82723,2071.6,2071.1,4.82834]
[1742949237139,7.82723,2071.6,2071.2,0.32745188]
[1742949237512,3.0,2071.6,2071.2,0.32745188]
[1742949237712,3.0,2071.6,2071.2,5.15554188]
[1742949238908,3.0,2071.6,2071.2,1.51815388]
[1742949239106,3.0,2071.6,2071.2,0.32745188]
[1742949240038,0.828,2071.7,2071.2,0.32745188]
[1742949240343,3.0,2071.7,2071.3,1.3403]
[1742949240509,3.0,2071.7,2071.3,6.16818]
[1742949240711,3.0,2071.7,2071.4,0.32654433]
[1742949243023,9.83460416,2071.9,2071.4,0.32654433]
[1742949243210,14.39780858,2071.9,2071.4,0.32654433]
[1742949243610,3.0,2071.7,2071.4,0.32654433]
[1742949243846,5.00808416,2071.7,2071.4,0.32654433]
[1742949244143,3.0,2071.7,2071.4,0.32654433]
[1742949244530,3.0,2071.7,2071.3,4.82779]
[1742949244735,3.0,2071.7,2071.5,0.32552166]
[1742949244946,3.0,2071.8,2071.4,0.32597537]
[1742949245248,3.0,2071.8,2071.6,0.325068]
[1742949245423,3.0,2071.8,2071.5,0.32552166]
[1742949245625,3.0,2071.8,2071.3,4.82779]
[1742949245815,3.0,2071.8,2071.4,5.15361537]
[1742949246211,3.0,2071.8,2071.4,0.32597537]
[1742949246512,7.82674,2071.8,2071.4,0.32597537]
[1742949248459,0.828,2072.0,2071.5,0.7903]
[1742949248636,10.47981,2072.2,2071.6,4.82695]
[1742949248847,3.0,2072.1,2071.7,0.32387679]
[1742949249562,4.598,2072.3,2071.7,0.32387679]
[1742949249759,6.83317416,2072.5,2071.7,0.32387679]
[1742949249760,0.7712,2072.4,2071.9,4.82645]
[1742949250067,0.7712,2072.4,2072.0,0.32196844]
[1742949250068,5.59657,2072.4,2072.0,0.32196844]
[1742949250264,3.0,2072.3,2072.0,0.32196844]
[1742949250566,5.59657,2072.4,2072.0,0.32196844]
[1742949250864,3.0,2072.4,2072.1,0.32147286]
[1742949251363,3.0,2072.4,2071.9,4.82629]
[1742949251533,3.0,2072.4,2072.2,0.32101946]
[1742949251730,3.0,2072.4,2071.9,9.65266]
[1742949251936,3.0,2072.4,2072.3,0.3205661]
[1742949252140,3.0,2072.4,2072.0,4.82623]
[1742949252347,3.0,2072.4,2072.3,0.3205661]
[1742949252546,3.0,2072.4,2072.0,4.82623]
[1742949252747,3.0,2072.4,2072.3,0.3205661]
[1742949252967,3.0,2072.4,2071.8,5.59648]
[1742949253165,7.82536,2072.4,2072.3,0.3205661]
[1742949253367,7.82536,2072.4,2071.9,5.37644]
[1742949253368,3.0,2072.4,2071.9,5.37644]
[1742949253739,3.0,2072.4,2072.0,0.32192631]
[1742949254272,7.82533,2072.4,2072.0,0.32192631]
[1742949255766,3.0,2072.4,2072.0,0.32192631]
[1742949255940,3.0,2072.4,2072.0,5.79498694]
[1742949256943,7.82539,2072.4,2072.0,0.96875694]
[1742949257143,7.82539,2072.4,2072.0,0.32192631]
[1742949257337,3.0,2072.4,2072.0,0.32192631]
[1742949258738,7.82535,2072.4,2072.0,0.32192631]
[1742949259374,4.8258,2072.2,2072.0,0.32192631]